Cogmind - Beta 14 @@@ ROGUE MODE // 2024.08.26 @ 16:41:30 Player: MadBadger Result: Destroyed by B-36 Bruiser with Hammer Performance ------------- Evolutions (1) 500 Regions Visited (2) 400 Robots Destroyed (53) 265 Value Destroyed (985) 985 Prototype IDs (3) 60 Alien Tech Used (0) 0 Bonus (0) 0 TOTAL SCORE: 2210 Bonus ------- None Cogmind --------- Core Integrity 0/400 Matter 285/300 Energy 265/265 System Corruption 2% Temperature Cool (17) Movement Core (550) Ox10 Location -9/Materials Parts ------- > --- POWER (1) -------- Improved Ion Engine > --- PROPULSION (3) --- (None) > --- UTILITY (2) ------ Large Storage Unit Light Armor Plating > --- WEAPON (3) ------- Light Assault Rifle > --- INVENTORY (15) --- Light Ion Engine Sensor Array Signal Interpreter Signal Interpreter Terrain Scanner Terrain Scan Processor Small Laser Beam Rifle Improved Medium Laser Improved Medium Laser Light Assault Rifle Heavy Assault Rifle Peak State ------------ > --- POWER ------------ Improved Ion Engine > --- PROPULSION ------- Light Treads Light Treads Improved Treads > --- UTILITY ---------- Large Storage Unit Light Armor Plating > --- WEAPON ----------- Improved EM Shotgun Light Assault Rifle Heavy Assault Rifle > --- INVENTORY -------- Light Ion Engine Light Treads Light Treads Improved Flight Unit Improved Flight Unit Sensor Array Signal Interpreter Signal Interpreter Terrain Scanner Small Laser Beam Rifle Improved Medium Laser Improved Medium Laser Light Assault Rifle Heavy Assault Rifle [Rating: 16] Favorites ----------- Power Ion Engine Engine Ion Engine Propulsion Light Treads Treads Light Treads Flight Unit Improved Flight Unit Utility Terrain Scanner Device Terrain Scanner Storage Large Storage Unit Protection Light Armor Plating Weapon Assault Rifle Energy Gun Small Laser Ballistic Gun Assault Rifle Launcher Grenade Launcher Build | -11 -10 -9 ------- Run | Yrd Mat Mat Slots Evolved 2 | . . 2 Power . | . . . Propulsion 1 | . . 1 Utility . | . . . Weapon 1 | . . 1 Parts Attached 36 | 6 8 22 Power 3 | 1 . 2 Engine 3 | 1 . 2 Core . | . . . Reactor . | . . . Propulsion 10 | 2 . 8 Treads 9 | 2 . 7 Leg . | . . . Wheel . | . . . Hover . | . . . Flight 1 | . . 1 Utility 5 | 1 3 1 Device 1 | . 1 . Storage 3 | 1 2 . Processor . | . . . Hackware . | . . . Protection 1 | . . 1 Artifact . | . . . Weapon 18 | 2 5 11 Energy Gun 8 | 1 . 7 Energy Cannon . | . . . Ballistic Gun 8 | 1 3 4 Ballistic Cannon . | . . . Launcher 2 | . 2 . Special Weapon . | . . . Impact Weapon . | . . . Slashing Weapon . | . . . Piercing Weapon . | . . . Special Melee Weapon . | . . . Unidentified Prototypes 3 | . . 3 Parts Lost 11 | . . 11 Power 2 | . . 2 Propulsion 2 | . . 2 Utility 1 | . . 1 Weapon 6 | . . 6 Highest Loss Streak 4 | . . 4 To Critical Strikes . | . . . Average Slot Usage (%) 87 | . 92 82 Engine 11 | . 14 9 Treads 25 | . 28 22 Device 9 | . 12 5 Storage 12 | . 14 11 Protection 2 | . . 4 Energy Gun 7 | . 6 8 Ballistic Gun 16 | . 11 20 Launcher 2 | . 3 . Peak Build Rating 16 | 6 7 16 Average Rating 8 | 4 6 10 On Entrance 4 | . 6 7 Naked Turns . | . . . Heaviest Build 37 | 13 29 37 Greatest Support 63 | 40 40 63 Greatest Overweight (x) 9 | . . 9 Average Overweight (x) . | . . . Largest Inventory Capacity 15 | 8 15 15 Average Capacity 12 | 6 9 15 Most Carried 15 | 2 7 15 Average Carried 6 | . 4 9 Final Capacity 15 | 8 15 15 Final Carried 12 | 2 4 12 Class Distribution -------------------- 57% | Mutant 21% | Skirmisher 11% | Scavenger-Tank 9% | Scavenger-Mutant Dominant Class ---------------- Mutant | -10/Materials Skirmisher | -9/Materials Resources | -11 -10 -9 ----------- Run | Yrd Mat Mat Matter Collected 1061 | 192 357 512 Remotely . | . . . Salvage Created 2092 | . 701 1391 Parts 100 | . 24 76 Haulers Intercepted 1 | . . 1 Recyclers Shooed 8 | . 3 5 Parts Field Recycled . | . . . Retrieved Matter . | . . . Parts Self-Destructed . | . . . Prevented . | . . . Kills | -11 -10 -9 ------- Run | Yrd Mat Mat Combat Hostiles Destroyed 26 | . 6 20 Guns 19 | . . 19 AOE 7 | . 6 1 Classes Destroyed 10 | . 5 5 Worker 7 | . 2 5 Builder 2 | . . 2 Hauler 1 | . . 1 Recycler 11 | . 5 6 Mechanic 1 | . 1 . Watcher 5 | . 2 3 Swarmer 8 | . . 8 Grunt 11 | . 6 5 Duelist 1 | . . 1 Sentry 6 | . . 6 Best Kill Streak 8 | . 4 8 Combat Bots Only 4 | . 4 4 Max Kills in Single Turn 2 | . 2 2 Gunslinging . | . . . Exploded 2 | . 2 1 Melee . | . . . Uniques/NPCs Destroyed . | . . . Combat | -11 -10 -9 -------- Run | Yrd Mat Mat Hostile Shots Fired 187 | . 24 163 Missed 48 | . 8 40 Damage Taken 2037 | . 228 1809 Core 449 | . 46 403 Absorbed by Shields . | . . . Core Remaining (%) 90 | 100 81 . Volleys Fired 182 | . 68 114 Largest 3 | . 2 3 Hottest 157 | . 70 157 Shots Fired 356 | . 79 277 Gun 350 | . 73 277 Cannon . | . . . Launcher 6 | . 6 . Special . | . . . Kinetic 247 | . 51 196 Thermal 94 | . 22 72 Explosive 6 | . 6 . Electromagnetic 9 | . . 9 Robot Hit Streak 19 | . 9 19 Robot Miss Streak 6 | . 3 6 Penetration Max . | . . . Secondary Targets 5 | . . 5 Max Gunslinging Chain 1 | . . 1 Shots Hit Robots 201 | . 48 153 Core Hits 87 | . 28 59 Critical Kills . | . . . Critical Parts Destroyed . | . . . Critical Strikes 5 | . . 5 Burn 5 | . . 5 Melee Attacks . | . . . Impact . | . . . Slashing . | . . . Piercing . | . . . Sneak Attacks . | . . . Combat Hostiles . | . . . Follow-up Attacks . | . . . Damage Inflicted 2786 | . 855 1931 Guns 2301 | . 498 1803 Cannons . | . . . Explosions 484 | . 357 127 Melee . | . . . Ramming 1 | . . 1 Kinetic 1583 | . 398 1185 Thermal 759 | . 100 659 Explosive 357 | . 357 . Electromagnetic 86 | . . 86 Impact . | . . . Slashing . | . . . Piercing . | . . . Highest Corruption 2 | . . 2 Average Corruption 2 | . . 2 Corruption Purged . | . . . Corruption Blocked . | . . . Overload Shots . | . . . Overflow Damage 29 | . . 29 Projectiles . | . . . Explosions 29 | . . 29 Melee . | . . . Knockbacks . | . . . Impact . | . . . Kinetic . | . . . Secondary . | . . . Self-Inflicted Damage 34 | . . 34 Shots 1 | . . 1 Rammed 1 | . . 1 Targets Rammed 1 | . . 1 Kicked . | . . . Crushed . | . . . Highest Temperature 330 | . 54 330 Average Temperature 58 | . 25 61 Received Heat Transfer 558 | . 147 411 Siege Activations . | . . . Robots Corrupted . | . . . Combat Hostiles . | . . . Parts Fried 1 | . . 1 Impact Corruptions . | . . . Robots Melted . | . . . Combat Hostiles . | . . . Parts Melted 6 | . . 6 Heat Transferred 1910 | . 225 1685 Parts Sabotaged . | . . . Parts Stolen . | . . . Parts Stripped . | . . . Power Chain Reactions 1 | . . 1 Alert | -11 -10 -9 ------- Run | Yrd Mat Mat Peak Influence 293 | . 224 293 Initial . | . . . Average 100 | . 54 155 Maximum Alert Level 1 | . 1 1 Low Security (%) 80 | 100 90 68 Level 1 19 | . 9 31 Level 2 . | . . . Level 3 . | . . . Level 4 . | . . . Level 5 . | . . . High Security . | . . . Max Security . | . . . Squads Dispatched 4 | . 2 2 Investigation 1 | . 1 . Extermination . | . . . Reinforcement 3 | . 1 2 Assault . | . . . Garrison . | . . . Intercept . | . . . Searches Triggered . | . . . Construction Impeded . | . . . Haulers Reinforced . | . . . Active Scanning Responses . | . . . Cargo Convoy Interrupts . | . . . Stealth | -11 -10 -9 --------- Run | Yrd Mat Mat Distress Signals 3 | . . 3 Communications Jammed . | . . . Distress Signals . | . . . Times Spotted 49 | . 17 32 Peak Tracking Total 6 | . 4 6 Tactical Retreats . | . . . Traps | -11 -10 -9 ------- Run | Yrd Mat Mat Traps Triggered 6 | . 2 4 Indirectly . | . . . Trap Hack Attempts . | . . . Triggered . | . . . Disarmed . | . . . Reprogrammed . | . . . Reused . | . . . Traps Extracted . | . . . Installed . | . . . Triggered . | . . . Machines | -11 -10 -9 ---------- Run | Yrd Mat Mat Machines Disabled 2 | . 2 . Max in Single Turn 1 | . 1 . Machines Repaired . | . . . Machines Dismantled . | . . . Machines Sabotaged . | . . . Overloaded Fab Kills . | . . . Hacking | -11 -10 -9 --------- Run | Yrd Mat Mat Machines Accessed 1 | . 1 . Terminals . | . . . Fabricators . | . . . Repair Stations . | . . . Recycling Units 1 | . 1 . Scanalyzers . | . . . Garrison Access . | . . . Total Hacks 4 | . 4 . Successful . | . . . Failed 4 | . 4 . Catastrophic . | . . . Database Lockouts . | . . . Manual . | . . . Terminals . | . . . Fabricators . | . . . Repair Stations . | . . . Recycling Units 4 | . 4 . Scanalyzers . | . . . Garrison Access . | . . . Terminal Hacks . | . . . Fabricator Hacks . | . . . Repair Station Hacks . | . . . Recycling Unit Hacks . | . . . Scanalyzer . | . . . Garrison Access Hacks . | . . . Unauthorized Hacks . | . . . Terminals . | . . . Fabricators . | . . . Repair Stations . | . . . Recycling Units . | . . . Scanalyzers . | . . . Garrison Access . | . . . Data Cores Recovered . | . . . Used . | . . . Hacking Detections 1 | . 1 . Full Trace Events 1 | . 1 . Feedback Events . | . . . Feedback Blocked . | . . . Robot Schematics Acquired . | . . . Robots Built . | . . . Authchips . | . . . Time . | . . . Total Robot Build Rating . | . . . Part Schematics Acquired . | . . . Parts Built . | . . . Authchips . | . . . Time . | . . . Total Part Build Rating . | . . . Parts Repaired . | . . . Time . | . . . Parts Recycled . | . . . Recycled Matter . | . . . Retrieved Matter . | . . . Retrieved Components . | . . . Parts Scanalyzed . | . . . Part Schematics Acquired . | . . . Parts Damaged . | . . . Bothacking | -11 -10 -9 ------------ Run | Yrd Mat Mat Used RIF Installer . | . . . Robots Hacked . | . . . Non-combat . | . . . Combat . | . . . Robot Hacks Applied . | . . . Relay Couplers Released . | . . . Fabnet Peak Effective % . | . . . Robots Rewired . | . . . Allies Hacked . | . . . Hacks Repelled . | . . . Allies | -11 -10 -9 -------- Run | Yrd Mat Mat Total Allies . | . . . Largest Group . | . . . Highest-Rated Group . | . . . Highest-Rated Ally . | . . . Total Orders . | . . . Ally Attacks . | . . . Total Damage . | . . . Kills . | . . . Allies Corrupted . | . . . Allies Melted . | . . . Intel | -11 -10 -9 ------- Run | Yrd Mat Mat Robot Analysis Total . | . . . Derelict Logs Recovered . | . . . Drone Launches . | . . . Drone Recoveries . | . . . Exploration | -11 -10 -9 ------------- Run | Yrd Mat Mat Turns Passed 2825 | 121 1369 1335 Spaces Moved 1353 | 67 755 531 Core 14 | 3 . 11 Treads 1339 | 64 755 520 Legs . | . . . Wheels . | . . . Hover . | . . . Flight . | . . . Fastest Speed 50 | 50 160 160 Average Speed 167 | 155 160 179 Slowest Speed 500 | 160 160 500 Overloaded Moves . | . . . Propulsion Burnouts . | . . . Robots Hopped . | . . . Cave-ins Triggered . | . . . Exploration Rate (%) 33 | 5 59 35 Regions Visited 2 Branch Regions . Pre-discovered Areas . | . . . Known Exits Taken . | . . . Unknown Exits Taken 2 | 1 1 . Scrap Searched . | . . . Spaces Dug . | . . . Terrain Destroyed 30 | . 28 2 Melee . | . . . Projectile . | . . . AOE 30 | . 28 2 Terrain Rammed . | . . . Walls Destroyed . | . . . Machines Disabled . | . . . Actions | -11 -10 -9 --------- Run | Yrd Mat Mat Total 1623 | 81 835 707 Wait 24 | 7 . 17 Move 1351 | 66 754 531 Hop . | . . . Pick Up 19 | 2 3 14 Fast Attach 20 | 6 1 13 Attach 7 | . 1 6 Detach 3 | . . 3 Swap 9 | . 6 3 Drop 7 | . 2 5 Fire 182 | . 68 114 Melee . | . . . Ram . | . . . Kick . | . . . Crush 1 | . . 1 Escape Stasis . | . . . Rewire . | . . . Trap . | . . . Miscellaneous . | . . . Route ------- -11/Scrapyard -10/Materials (discovered 4 exits: [*Mat x3] / [*Min]) -9/Materials (discovered 1 exit: [*Min]) History --------- Turn | Location | Event 75 | -11/Scrapyard | Discovered new exit (range 15) 122 | -11/Scrapyard | Entered Materials 245 | -10/Materials | Discovered new exit (range 15) 298 | -10/Materials | Discovered new exit (range 10) 302 | -10/Materials | Discovered new exit (range 15) 304 | -10/Materials | Build established: Mutant 810 | -10/Materials | Discovered new exit (range 7) 1491 | -10/Materials | Entered another Materials area 1491 | -9/Materials | Evolved 2 slots: Propulsion x1, Weapon x1 1791 | -9/Materials | Build established: Skirmisher 2178 | -9/Materials | Core integrity fell below 50% 2236 | -9/Materials | Lost 4 parts (1u3w) 2572 | -9/Materials | Core integrity fell below 20% 2659 | -9/Materials | Discovered new exit (range 10) 2826 | -9/Materials | Destroyed by B-36 Bruiser with Hammer Last Messages --------------- 02608_ U-05 Engineer lays Concrete. 02608_ Slammed into U-05 Engineer. 02609_ U-05 Engineer lays Concrete. 02614_ K-01 Serf collects debris. 02649_ K-01 Serf cleans the Matter Filter. 02659_ EXIT=FOUND 02662_ K-01 Serf cleans the Terminal. 02667_ ALERT: Hostiles spotted, dispatching reinforcements to Terminal M010. 02693_ O-16 Technician: "IFF HANDSHAKE FAILED. SECURING TERMINAL." 02694_ ALERT: Hostiles spotted, dispatching reinforcements to Terminal M011. 02716_ K-01 Serf cleans the Atomic Centrifuge. 02777_ Acquired Terrain Scan Processor. 02797_ K-01 Serf cleans the Terminal. 02802_ G-34 Mercenary destroyed. 02805_ K-01 Serf collects debris. 02823_ Lgt. Treads destroyed. 02823_ System corrupted by crushing effect (+2). 02825_ Hvy. Assault Rifle destroyed. Map ----- +----------------------------------------------------+ | ?????????????????????????????????????????????????? | | ?????????????????????????????????????????????????? | | ?????????????????????????????????????????????????? | | ?????????????????????????????????????????????????? | | ?????????????????????????????????????????????????? | | ?????????????????????????????????????????????????? | | ?????????????????????????????????????????????????? | | ?????????????????????????????????????????????????? | | ?????????????????????????????????????????????????? | | ?????????????????????????????????????????????????? | | ????????????????????##########???????????????????? | | ????????????????????#[ #???????????????????? | | ????????????????????# """ #???????????????????? | | ????????????????????#! """ #???????????????????? | | ????????????????????# """ #???????????????????? | | ????????????????????# / #???????????????????? | | ????????????######### """ #???????????????????? | | ????????????# ## "T #???????????????????? | | ????????????# "" ## """ ! #???????????????????? | | ????????????# "T ## #???????????????????? | | ????????????# "" ######+#########??????????????? | | ????????????# #???# + T #??????????????? | | ????????????# """ #####k # #??????????????? | | ????????????# """ + =%= + """ #??????????????? | | ????????????# """ ##### # """ #??????????????? | | ????######### #???# @ #?""" #??????????????? | | + """ #???# b #?? #??????????????? | | ????######### """ #???# #??###????????????????? | | ????????????# """ #???T +?????????????????????? | | #???######### #??## #?????????????????????? | | ##### ##+#########g #?????????????????????? | | #?????????????????????? | | < #?????????????????????? | | #?????????????????????? | | ##### ##+#########+###?????????????????????? | | ###?# "!"|" #????????????????????????????????????? | | #?#""!"|""#????????????????????????????????????? | | " #?#########????????????????????????????????????? | | " #??????????????????????????????????????????????? | | " #??????????????????????????????????????????????? | | " #??????????????????????????????????????????????? | | " #??????????????????????????????????????????????? | | #??????????????????????????????????????????????? | | ###??????????????????????????????????????????????? | | ###??????????????????????????????????????????????? | | #??????????????????????????????????????????????? | | +??????????????????????????????????????????????? | | #??????????????????????????????????????????????? | | ###??????????????????????????????????????????????? | | #???????????????????????????????????????????????? | +----------------------------------------------------+ Best States ------------- Heat Dissipation 28 Energy Generation 12 Energy Capacity 265 Matter Stores 300 Matter Capacity 300 Sight Range 16 Terrain Scan Range 14 Terrain Scan Density 10 Armor Coverage 150 Evasion (%) 40 Recoil Reduction 3 Item Schematics ----------------- None Robot Schematics ------------------ None Fabricated ------------ Nothing Alien Tech Used ----------------- None Achievements -------------- None Challenges ------------ None Game ------ Seed CoilStormImmobilizer Manual? 0 Play Time 00:20:32 Cumulative 7.9 hours Start 2024.08.26 @ 16:20:51 End 2024.08.26 @ 16:41:30 Sessions 1 Manual Loads 0 Difficulty Rogue Special Mode None Game No. 11 Rogue 11 Adventurer 0 Explorer 0 Win Type - Total 0 Types 0/0/0/0/0/0/0/0/0 Lore% 1 Gallery% 9 Achievement% 10 Wizard Run 0 Options --------- Layout 0 ASCII 0 Keyboard 1 Movement Numpad Keybinds 0 Fullscreen 1 Font 24/Smallcaps Map View 76x50 Zoom Use 0% Tactical HUD 1 Map Filters NONE Filters NONE Steam 1 RUN: e0cf2786-52d0-4c56-92aa-d206cbae9764